bitfinex-derivatives/quotes_BTCF0:USTF0_20250704
["timestamp","ask_amount","ask_price","bid_price","bid_amount"]
[1751602660895,1.11741317,109380.0,109370.0,0.6765022]
[1751602661097,1.11741317,109380.0,109370.0,0.92508288]
[1751602661792,1.11741317,109380.0,109370.0,0.6765022]
[1751602661999,1.14991317,109380.0,109370.0,0.72138288]
[1751602663200,0.80991317,109380.0,109370.0,0.72138288]
[1751602663398,1.12991317,109380.0,109370.0,0.5354022]
[1751602663600,1.37849385,109380.0,109370.0,0.78398288]
[1751602663796,0.56133249,109380.0,109370.0,0.78398288]
[1751602664003,0.80991317,109380.0,109370.0,0.78398288]
[1751602664204,1.12991317,109380.0,109370.0,0.78398288]
[1751602665703,1.37849385,109380.0,109370.0,0.78398288]
[1751602666602,1.37849385,109380.0,109370.0,0.75358288]
[1751602667202,1.37849385,109380.0,109370.0,0.72138288]
[1751602668405,0.56133249,109380.0,109370.0,0.72138288]
[1751602668605,1.17991317,109380.0,109370.0,0.72138288]
[1751602669106,0.80991317,109380.0,109370.0,0.72138288]
[1751602669403,1.13991317,109380.0,109370.0,0.72138288]
[1751602678612,0.89133249,109380.0,109370.0,0.72138288]
[1751602678912,1.13991317,109380.0,109370.0,0.72138288]
[1751602679811,0.80991317,109380.0,109370.0,0.72138288]
[1751602680012,1.15991317,109380.0,109370.0,0.72138288]
[1751602682209,1.16991317,109380.0,109370.0,0.72138288]
[1751602682612,1.64519317,109380.0,109370.0,0.73138288]
[1751602682813,2.00519317,109380.0,109370.0,0.73138288]
[1751602683616,2.00521019,109380.0,109370.0,0.73138288]
[1751602683817,1.39662951,109380.0,109370.0,0.73138288]
[1751602684119,2.02521019,109380.0,109370.0,0.73138288]
[1751602684611,1.39662951,109380.0,109370.0,0.73138288]
[1751602684812,1.97521019,109380.0,109370.0,0.73138288]
[1751602685114,1.39662951,109380.0,109370.0,0.4828022]
[1751602685515,2.01521019,109380.0,109370.0,0.73138288]
[1751602686216,2.01521019,109380.0,109370.0,0.80455444]
[1751602690817,2.01521019,109380.0,109370.0,0.79455444]
[1751602691009,2.01521019,109380.0,109370.0,0.72138288]
[1751602693216,1.64521019,109380.0,109370.0,0.72138288]
[1751602693416,2.00521019,109380.0,109370.0,0.72138288]
[1751602698811,2.43657627,109380.0,109370.0,0.4728022]
[1751602699013,2.43657627,109380.0,109370.0,0.72138288]
[1751602699511,2.07577627,109380.0,109370.0,0.72138288]
[1751602699707,2.42657627,109380.0,109370.0,0.72138288]
[1751602703420,2.17799559,109380.0,109370.0,0.72138288]
[1751602704123,2.17799559,109380.0,109370.0,0.4728022]
[1751602704322,2.42657627,109380.0,109370.0,0.72138288]
[1751602704518,2.42657627,109380.0,109370.0,0.79455444]
[1751602707625,2.42657627,109380.0,109370.0,0.54597376]
[1751602707825,2.42657627,109380.0,109370.0,0.79455444]
[1751602708125,2.24379087,109380.0,109370.0,0.79455444]
[1751602708726,1.99521019,109380.0,109370.0,0.79455444]
[1751602711329,1.99518118,109380.0,109370.0,0.79455444]
[1751602717343,1.99518118,109380.0,109370.0,0.72138288]
[1751602717930,1.64518118,109380.0,109370.0,0.72138288]
[1751602718333,1.99518118,109380.0,109370.0,0.72138288]
[1751602719435,2.17796658,109380.0,109370.0,0.72138288]
[1751602721241,1.99518118,109380.0,109370.0,0.72138288]
[1751602721445,1.99518118,109380.0,109370.0,0.4728022]
[1751602721644,1.99518118,109380.0,109370.0,0.72138288]
[1751602723545,0.5613205,109380.0,109370.0,0.72138288]
[1751602723745,1.95234118,109380.0,109370.0,0.72138288]
[1751602723946,1.3937605,109380.0,109370.0,0.72138288]
[1751602724146,1.7537605,109380.0,109370.0,0.72138288]
[1751602724347,2.00234118,109380.0,109370.0,0.72138288]
[1751602725647,2.18512658,109380.0,109370.0,0.72138288]
[1751602725846,2.00234118,109380.0,109370.0,0.72138288]
[1751602726547,1.3937605,109380.0,109370.0,0.72138288]
[1751602726747,2.01234118,109380.0,109370.0,0.72138288]
[1751602727046,1.93984118,109380.0,109370.0,0.72138288]
[1751602727246,1.97074118,109380.0,109370.0,0.72138288]
[1751602729749,0.1370205,109380.0,109370.0,1.53218288]
[1751602729941,0.0639,109390.0,109370.0,1.90392632]
[1751602730148,1.00562,109390.0,109380.0,1.11391832]
[1751602730348,1.25420068,109390.0,109380.0,1.59661832]
[1751602731046,0.42228068,109390.0,109380.0,1.59661832]
[1751602731247,1.25416068,109390.0,109380.0,1.59661832]
[1751602731550,1.25716068,109390.0,109380.0,1.59661832]
[1751602731751,1.50926068,109390.0,109380.0,1.34803764]
[1751602732252,1.51026068,109390.0,109380.0,1.34803764]
[1751602732753,1.50926068,109390.0,109380.0,1.34803764]
[1751602732948,1.51126068,109390.0,109380.0,1.34803764]
[1751602733143,1.51126068,109390.0,109380.0,1.59661832]
[1751602733355,1.51126068,109390.0,109380.0,1.52344676]
[1751602733857,1.51126068,109390.0,109380.0,1.27486608]
[1751602734853,1.18126068,109390.0,109380.0,1.27486608]
[1751602735056,1.59409502,109390.0,109380.0,1.27486608]
[1751602736348,1.25409502,109390.0,109380.0,1.27486608]
[1751602736554,1.61409502,109390.0,109380.0,1.27486608]
[1751602739862,1.61409502,109390.0,109380.0,1.21216608]
[1751602741860,1.61409502,109390.0,109380.0,0.85136608]
[1751602742157,1.79686372,109390.0,109380.0,1.21216608]
[1751602742659,0.96498372,109390.0,109380.0,1.21216608]
[1751602742859,1.34325502,109390.0,109380.0,1.46074676]
[1751602744559,1.34325502,109390.0,109380.0,1.21216608]
[1751602746161,1.57325502,109390.0,109380.0,1.21216608]
[1751602746557,1.75602372,109390.0,109380.0,1.21216608]
[1751602747061,1.57325502,109390.0,109380.0,1.21216608]
[1751602747463,1.57325502,109390.0,109380.0,0.85136608]
[1751602747763,1.57325502,109390.0,109380.0,1.21216608]
[1751602747964,1.57325502,109390.0,109380.0,0.9635854]
[1751602748154,1.57325502,109390.0,109380.0,1.21216608]
[1751602749866,1.75602372,109390.0,109380.0,1.21216608]
[1751602750565,1.75602372,109390.0,109380.0,0.4927854]
[1751602751268,2.02748827,109390.0,109380.0,0.4927854]
[1751602751462,2.38828827,109390.0,109380.0,0.4927854]
[1751602753281,0.1827854,109380.0,109370.0,0.1456968]
[1751602753570,1.43843693,109380.0,109370.0,0.5584929]
[1751602754776,0.94227557,109380.0,109370.0,0.5584929]
[1751602755072,1.43943693,109380.0,109370.0,0.5584929]
[1751602758973,1.44871243,109380.0,109370.0,0.5584929]
[1751602763372,1.08791243,109380.0,109370.0,0.5584929]
[1751602763573,1.42582226,109380.0,109370.0,0.5584929]
[1751602765174,1.06502226,109380.0,109370.0,0.5584929]
[1751602765375,1.42582226,109380.0,109370.0,0.5584929]
[1751602766572,1.44856859,109380.0,109370.0,0.5584929]
[1751602770476,1.48066859,109380.0,109370.0,0.5584929]
[1751602771374,1.48067124,109380.0,109370.0,0.5584929]
[1751602776474,1.11987124,109380.0,109370.0,0.5584929]
[1751602776673,1.48067124,109380.0,109370.0,0.5584929]
[1751602781890,0.98350988,109380.0,109370.0,0.5584929]
[1751602782184,1.47139574,109380.0,109370.0,0.5584929]
[1751602784796,1.44864676,109380.0,109370.0,0.5584929]
[1751602784992,1.48068077,109380.0,109370.0,0.5584929]
[1751602785197,1.4806809,109380.0,109370.0,0.5584929]
[1751602786398,1.4714558,109380.0,109370.0,0.5584929]
[1751602786594,0.97429444,109380.0,109370.0,0.5584929]
[1751602787199,1.4714558,109380.0,109370.0,0.5584929]
[1751602788004,1.47145598,109380.0,109370.0,0.5584929]
[1751602788704,1.47145598,109380.0,109370.0,0.80707358]
[1751602790603,1.44864676,109380.0,109370.0,0.80707358]
[1751602790806,1.47145562,109380.0,109370.0,0.80707358]
[1751602791807,1.47145562,109380.0,109370.0,0.5584929]
[1751602792503,2.30237562,109380.0,109370.0,0.5584929]
[1751602793306,1.47145562,109380.0,109370.0,0.5584929]
[1751602793605,2.30225562,109380.0,109370.0,0.5584929]
[1751602796108,1.99225562,109380.0,109370.0,0.5584929]
[1751602796301,2.37225562,109380.0,109370.0,0.5584929]
[1751602798109,1.16145562,109380.0,109370.0,0.5584929]
[1751602798309,2.32193562,109380.0,109370.0,0.5584929]
[1751602799109,2.32190967,109380.0,109370.0,0.5584929]
[1751602801914,1.82474831,109380.0,109370.0,0.5584929]
[1751602802106,2.32190967,109380.0,109370.0,0.5584929]
[1751602803913,1.96110967,109380.0,109370.0,0.5584929]
[1751602804113,2.32190967,109380.0,109370.0,0.5584929]
[1751602810419,1.96110967,109380.0,109370.0,0.5584929]
[1751602810719,2.32190967,109380.0,109370.0,0.5584929]
[1751602813520,1.96110967,109380.0,109370.0,0.5584929]
[1751602813828,2.32190967,109380.0,109370.0,0.5584929]
[1751602817520,1.96110967,109380.0,109370.0,0.5584929]
[1751602817720,2.32190967,109380.0,109370.0,0.5584929]
[1751602818221,1.82474831,109380.0,109370.0,0.5584929]
[1751602818422,2.32190967,109380.0,109370.0,0.5584929]
[1751602820924,1.96110967,109380.0,109370.0,0.5584929]
[1751602821124,2.32190967,109380.0,109370.0,0.5584929]
[1751602824829,1.96110967,109380.0,109370.0,0.5584929]
[1751602825127,2.32190967,109380.0,109370.0,0.5584929]
[1751602825430,1.96110967,109380.0,109370.0,0.5584929]
[1751602825622,2.32190967,109380.0,109370.0,0.5584929]
[1751602827317,1.96110967,109380.0,109370.0,0.5584929]
[1751602827522,2.32190967,109380.0,109370.0,0.5584929]
[1751602829526,1.16142967,109380.0,109370.0,0.5584929]
[1751602829729,2.32142967,109380.0,109370.0,0.80707358]
[1751602830432,1.96062967,109380.0,109370.0,0.80707358]
[1751602830634,2.32142967,109380.0,109370.0,0.80707358]
[1751602830824,1.96062967,109380.0,109370.0,0.80707358]
[1751602831027,2.32142967,109380.0,109370.0,0.80707358]
[1751602833530,1.82426831,109380.0,109370.0,0.80707358]
[1751602833727,2.35142967,109380.0,109370.0,0.5584929]
[1751602834238,1.85426831,109380.0,109370.0,0.5584929]
[1751602834529,2.35142967,109380.0,109370.0,0.5584929]
[1751602844835,1.99062967,109380.0,109370.0,0.5584929]
[1751602845032,2.35142967,109380.0,109370.0,0.5584929]
[1751602849036,1.85426831,109380.0,109370.0,0.5584929]
[1751602849239,2.35142967,109380.0,109370.0,0.5584929]
[1751602849537,2.35142967,109380.0,109360.0,1.26049058]
[1751602849538,0.182802,109370.0,109360.0,0.2742174]
[1751602849727,1.51644627,109370.0,109360.0,0.5642174]
[1751602849929,1.26786559,109370.0,109360.0,0.5642174]
[1751602850840,1.26786559,109370.0,109360.0,0.5662174]
[1751602852139,1.26786559,109370.0,109360.0,0.5672174]
[1751602860242,0.90786559,109370.0,109360.0,0.2772174]
[1751602860443,1.23786559,109370.0,109360.0,0.5572174]
[1751602861951,1.21508268,109370.0,109360.0,0.5572174]
[1751602862546,0.966502,109370.0,109360.0,0.5572174]
[1751602862851,1.21508268,109370.0,109360.0,0.5572174]
[1751602868055,1.23787954,109370.0,109360.0,0.5572174]
[1751602868854,1.23787995,109370.0,109360.0,0.5572174]
[1751602871556,0.87707995,109370.0,109360.0,0.5572174]
[1751602871856,1.23787995,109370.0,109360.0,0.5572174]
[1751602875850,1.48646063,109370.0,109360.0,0.5572174]
[1751602876044,1.48646063,109370.0,109360.0,0.5772174]
[1751602876244,1.48646063,109370.0,109360.0,0.2772174]
[1751602876452,1.48646063,109370.0,109360.0,0.003]
[1751602876652,0.1828188,109360.0,109350.0,0.2285297]
[1751602876855,2.35703743,109360.0,109350.0,0.2285297]
[1751602877062,2.35703743,109360.0,109350.0,0.5385297]
[1751602878353,2.35703743,109360.0,109350.0,0.5425297]
[1751602878549,2.35703743,109360.0,109350.0,0.5445297]
[1751602879658,2.35703743,109360.0,109350.0,0.55877551]
[1751602883462,1.99623743,109360.0,109350.0,0.55877551]
[1751602883662,2.71783743,109360.0,109350.0,0.55877551]
[1751602888163,2.96641811,109360.0,109350.0,0.31024581]
[1751602888359,2.96641811,109360.0,109350.0,0.02024581]
[1751602888664,0.1828522,109340.0,109330.0,0.4144021]
[1751602888853,2.19081356,109340.0,109330.0,0.5900021]
[1751602889053,2.28651356,109340.0,109330.0,0.5900021]
[1751602890365,2.28751356,109340.0,109330.0,0.5950021]
[1751602891555,2.29656544,109340.0,109330.0,0.5950021]
[1751602892455,2.29656544,109340.0,109330.0,0.5492857]
[1751602892662,2.31928794,109340.0,109330.0,0.5492857]
[1751602893068,2.31928794,109340.0,109330.0,0.5522857]
[1751602894564,2.29656544,109340.0,109330.0,0.5522857]
[1751602898566,2.28751356,109340.0,109330.0,0.5522857]
[1751602900668,2.28751356,109340.0,109330.0,0.5665704]
[1751602902571,2.29669955,109340.0,109330.0,0.5665704]
[1751602905870,2.31942567,109340.0,109330.0,0.5665704]
[1751602906172,2.56800635,109340.0,109330.0,0.0222847]
[1751602906768,2.31942567,109340.0,109330.0,0.0222847]
[1751602909470,1.95862567,109340.0,109330.0,0.0222847]
[1751602909674,2.68022567,109340.0,109330.0,0.0222847]
[1751602910870,2.68022567,109340.0,109330.0,0.02229542]
[1751602911275,2.68022567,109340.0,109330.0,0.20516432]
[1751602911574,1.95862567,109340.0,109330.0,0.20516432]
[1751602911775,2.68022567,109340.0,109330.0,0.20516432]
[1751602912680,0.1828689,109330.0,109320.0,0.2285939]
[1751602912871,1.49695638,109330.0,109320.0,0.5085939]
[1751602913975,1.49795187,109330.0,109320.0,0.5165939]
[1751602914377,1.49795187,109330.0,109320.0,0.5205939]
[1751602915380,1.56991394,109330.0,109320.0,0.5205939]
[1751602921185,1.56991394,109330.0,109320.0,0.3105939]
[1751602922679,1.56991394,109330.0,109320.0,0.082]
[1751602923982,1.56991394,109330.0,109320.0,0.081]
[1751602924280,0.1828855,109320.0,109310.0,0.20242312]
[1751602924483,2.52862847,109320.0,109310.0,0.50472008]
[1751602925688,2.52862847,109320.0,109310.0,0.51894197]
[1751602926187,2.52862847,109320.0,109310.0,0.52194197]
[1751602926487,2.52762847,109320.0,109310.0,0.52194197]
[1751602927089,2.52862847,109320.0,109310.0,0.52394197]
[1751602927983,2.52862847,109320.0,109310.0,0.52194197]
[1751602928190,2.52862847,109320.0,109310.0,0.52294197]
[1751602928589,2.52862847,109320.0,109310.0,0.53655885]
[1751602928889,2.52862847,109320.0,109310.0,0.53355885]
[1751602929089,2.52862847,109320.0,109310.0,0.53555885]
[1751602930089,2.03146711,109320.0,109310.0,0.53555885]
[1751602930291,2.52862847,109320.0,109310.0,0.53555885]
[1751602931190,2.52862847,109320.0,109310.0,0.53556895]
[1751602934192,2.52862847,109320.0,109310.0,0.53557156]
[1751602934395,2.52862847,109320.0,109310.0,0.53557318]
[1751602934687,2.52862847,109320.0,109310.0,0.52133858]
[1751602943296,2.52862847,109320.0,109310.0,0.52134421]
[1751602944892,2.16782847,109320.0,109310.0,0.52134421]
[1751602945096,2.52862847,109320.0,109310.0,0.52134421]
[1751602945297,2.52862847,109320.0,109310.0,0.20134421]
[1751602945598,2.52862847,109320.0,109310.0,0.49134421]
[1751602947098,1.46706847,109320.0,109310.0,0.49134421]
[1751602947297,2.03154711,109320.0,109310.0,0.49134421]
[1751602947498,2.52870847,109320.0,109310.0,0.49134421]
[1751602952506,2.52870847,109320.0,109310.0,0.49136263]
[1751602954603,2.52870847,109320.0,109310.0,0.47772008]
[1751602967220,2.52883847,109320.0,109310.0,0.47772008]
[1751602973834,1.46719847,109320.0,109310.0,0.47772008]
[1751602974125,2.52879847,109320.0,109310.0,0.47772008]
[1751602978831,2.03163711,109320.0,109310.0,0.47772008]
[1751602979132,2.52879847,109320.0,109310.0,0.47772008]
[1751602979832,2.16799847,109320.0,109310.0,0.47772008]
[1751602980026,2.52879847,109320.0,109310.0,0.47772008]
[1751602981832,2.16799847,109320.0,109310.0,0.47772008]
[1751602982031,2.52879847,109320.0,109310.0,0.47772008]
[1751602989936,2.16799847,109320.0,109310.0,0.47772008]
[1751602990140,2.52879847,109320.0,109310.0,0.47772008]
[1751602993839,2.16799847,109320.0,109310.0,0.47772008]
[1751602994040,2.52879847,109320.0,109310.0,0.47772008]
[1751602997037,2.52871847,109320.0,109310.0,0.47772008]
[1751602997842,2.16791847,109320.0,109310.0,0.47772008]
[1751602998037,2.52871847,109320.0,109310.0,0.47772008]
[1751603001445,2.16791847,109320.0,109310.0,0.47772008]
[1751603001643,2.52871847,109320.0,109310.0,0.47772008]
[1751603006451,2.16791847,109320.0,109310.0,0.47772008]
[1751603006651,2.52871847,109320.0,109310.0,0.47772008]
[1751603007551,2.52871847,109320.0,109310.0,0.49134893]
[1751603009753,2.52871847,109320.0,109310.0,0.47772008]
[1751603011552,2.16791847,109320.0,109310.0,0.47772008]
[1751603011752,2.52871847,109320.0,109310.0,0.47772008]
[1751603014355,2.16791847,109320.0,109310.0,0.47772008]
[1751603014555,2.52871847,109320.0,109310.0,0.47772008]
[1751603018061,2.52875479,109320.0,109310.0,0.47772008]
[1751603022962,2.03159343,109320.0,109310.0,0.47772008]
[1751603023167,2.52875479,109320.0,109310.0,0.47772008]
[1751603027165,2.52859479,109320.0,109310.0,0.47772008]
[1751603033472,2.16779479,109320.0,109310.0,0.47772008]
[1751603033673,2.52859479,109320.0,109310.0,0.47772008]
[1751603038394,2.16779479,109320.0,109310.0,0.47772008]
[1751603038597,2.52859479,109320.0,109310.0,0.47772008]
[1751603040597,2.16779479,109320.0,109310.0,0.47772008]
[1751603040898,2.52859479,109320.0,109310.0,0.47772008]
[1751603043403,2.16779479,109320.0,109310.0,0.47772008]
[1751603043700,2.52859479,109320.0,109310.0,0.47772008]
[1751603045304,2.03143343,109320.0,109310.0,0.47772008]
[1751603045498,2.52859479,109320.0,109310.0,0.47772008]
[1751603050410,2.29711479,109320.0,109310.0,0.47772008]
[1751603053208,1.93631479,109320.0,109310.0,0.47772008]
[1751603053506,2.29711479,109320.0,109310.0,0.47772008]
[1751603054103,1.79995343,109320.0,109310.0,0.47772008]
[1751603054304,2.29711479,109320.0,109310.0,0.47772008]
[1751603060414,1.93631479,109320.0,109310.0,0.47772008]
[1751603060714,2.29711479,109320.0,109310.0,0.47772008]
[1751603061407,1.93631479,109320.0,109310.0,0.47772008]
[1751603061707,2.29711479,109320.0,109310.0,0.47772008]
[1751603063411,1.93631479,109320.0,109310.0,0.47772008]
[1751603063613,2.29711479,109320.0,109310.0,0.47772008]
[1751603074823,1.93631479,109320.0,109310.0,0.47772008]
[1751603075025,2.29711479,109320.0,109310.0,0.47772008]
[1751603077716,2.52843479,109320.0,109310.0,0.47772008]
[1751603085330,2.43493479,109320.0,109310.0,0.47772008]
[1751603086033,2.52893479,109320.0,109310.0,0.47772008]
[1751603086232,2.5289631,109320.0,109310.0,0.47772008]
[1751603087433,2.1681631,109320.0,109310.0,0.47772008]
[1751603087625,2.5289631,109320.0,109310.0,0.47772008]
[1751603089935,2.50604686,109320.0,109310.0,0.47772008]
[1751603090232,2.52896309,109320.0,109310.0,0.47772008]
[1751603092533,2.16816309,109320.0,109310.0,0.47772008]
[1751603092734,2.52896309,109320.0,109310.0,0.47772008]
[1751603096149,2.50604686,109320.0,109310.0,0.47772008]
[1751603096350,2.52894805,109320.0,109310.0,0.47772008]
[1751603096851,2.52894805,109320.0,109310.0,0.20137809]
[1751603097151,2.77752873,109320.0,109310.0,0.20137809]
[1751603097451,2.52894805,109320.0,109310.0,0.20137809]
[1751603099050,2.52894805,109320.0,109310.0,0.25137809]
[1751603099550,2.52894805,109320.0,109310.0,0.20137809]
[1751603100452,2.52894805,109320.0,109310.0,0.26137809]
[1751603100951,2.52894805,109320.0,109310.0,0.51137809]
[1751603101751,2.52894805,109320.0,109310.0,0.26137809]
[1751603108860,2.52799039,109320.0,109310.0,0.26137809]
[1751603109562,2.52799039,109320.0,109310.0,0.07847589]
[1751603111462,2.52799039,109320.0,109310.0,0.26137839]
[1751603112163,2.52799039,109320.0,109310.0,0.07847589]
[1751603112559,2.52799039,109320.0,109310.0,0.26137839]
[1751603114468,2.52799039,109320.0,109310.0,0.07847589]
[1751603114671,2.52799039,109320.0,109310.0,0.07849878]
[1751603115066,2.52799039,109320.0,109310.0,0.06482958]
[1751603115467,2.77657107,109320.0,109310.0,0.06482958]
[1751603116270,2.77657107,109320.0,109310.0,0.06282958]
[1751603116672,2.77857107,109320.0,109310.0,0.06282958]
[1751603120471,2.41777107,109320.0,109310.0,0.06282958]
[1751603120673,2.77857107,109320.0,109310.0,0.06282958]
[1751603122480,2.41777107,109320.0,109310.0,0.06282958]
[1751603122677,2.77857107,109320.0,109310.0,0.06282958]
[1751603126178,2.75566988,109320.0,109310.0,0.06282958]
[1751603126373,2.77856964,109320.0,109310.0,0.06282958]
[1751603129180,2.41776964,109320.0,109310.0,0.06282958]
[1751603129382,2.77856964,109320.0,109310.0,0.06282958]
[1751603130382,2.77856964,109320.0,109310.0,0.06274958]
[1751603136385,2.77856964,109320.0,109310.0,0.00274958]
[1751603136686,0.1829192,109300.0,109290.0,0.2483329]
[1751603136876,2.501521,109300.0,109290.0,0.558336]
[1751603137079,2.595741,109300.0,109290.0,0.31]
[1751603137278,0.182936,109290.0,109280.0,0.2791414]
[1751603137476,1.49779712,109290.0,109280.0,0.2891414]
[1751603137885,1.49679712,109290.0,109280.0,0.5891414]
[1751603138081,0.62963576,109290.0,109280.0,0.5891414]
[1751603138388,1.44679712,109290.0,109280.0,0.5891414]
[1751603138581,1.44779712,109290.0,109280.0,0.5921414]
[1751603139087,1.44579712,109290.0,109280.0,0.5921414]
[1751603140083,1.44679712,109290.0,109280.0,0.60539058]
[1751603140588,1.42389736,109290.0,109280.0,0.60539058]
[1751603141390,1.43309414,109290.0,109280.0,0.60539058]
[1751603141688,1.66433414,109290.0,109280.0,0.60539058]
[1751603144285,1.69593414,109290.0,109280.0,0.5911414]
[1751603144491,1.69593414,109290.0,109280.0,0.60537805]
[1751603144693,1.69593414,109290.0,109280.0,0.50917805]
[1751603144888,1.69593414,109290.0,109280.0,0.26917805]
[1751603145089,1.69593414,109290.0,109280.0,0.49917805]
[1751603146393,1.69593414,109290.0,109280.0,0.4849414]
[1751603147193,1.69593414,109290.0,109280.0,0.4848604]
[1751603147389,1.69593414,109290.0,109280.0,0.302]
[1751603147590,1.71874569,109290.0,109280.0,0.062]
[1751603148297,0.1829524,109280.0,109270.0,0.00183024]
[1751603148493,2.53583444,109280.0,109270.0,0.01542136]
[1751603148692,2.28725376,109280.0,109270.0,0.01542136]
[1751603149495,2.55863504,109280.0,109270.0,0.01542136]
[1751603150202,2.55863504,109280.0,109270.0,0.01642136]
[1751603150499,2.55763504,109280.0,109270.0,0.01642136]
[1751603151098,2.55763504,109280.0,109270.0,0.01742136]
[1751603151099,2.55863504,109280.0,109270.0,0.01742136]
[1751603152094,2.56063504,109280.0,109270.0,0.01742136]
[1751603152898,2.56063504,109280.0,109270.0,0.01750331]
[1751603155706,2.56155404,109280.0,109270.0,0.01650331]
[1751603157307,0.1829859,109260.0,109250.0,1.4177352]
[1751603157498,1.50950726,109260.0,109250.0,1.71144566]
[1751603157704,1.50950726,109260.0,109250.0,1.73144566]
[1751603157705,1.87950726,109260.0,109250.0,1.73144566]
[1751603158506,1.95422711,109260.0,109250.0,1.73144566]
[1751603158903,1.95422711,109260.0,109250.0,1.01371046]
[1751603158904,2.31502711,109260.0,109250.0,1.01371046]
[1751603159108,2.40982711,109260.0,109250.0,1.01371046]
[1751603159408,2.40982711,109260.0,109250.0,1.28371046]
[1751603159606,0.61850575,109260.0,109250.0,1.52701306]
[1751603159805,0.07671985,109260.0,109250.0,2.69883042]
[1751603160108,0.01,109260.0,109250.0,2.87807432]
[1751603160308,0.01,109260.0,109250.0,2.62949364]
[1751603160509,0.013,109260.0,109250.0,2.62949364]
[1751603160808,0.014,109260.0,109250.0,2.62749364]
[1751603161211,0.1969859,109260.0,109250.0,2.62749364]
[1751603161810,0.27059993,109260.0,109250.0,2.62749364]
[1751603162912,0.51918061,109260.0,109250.0,2.62749364]
[1751603163516,0.27059993,109260.0,109250.0,2.62749364]
[1751603163918,0.1969859,109260.0,109250.0,2.62772219]
[1751603164620,0.1969859,109260.0,109250.0,2.44466619]
[1751603165320,0.21975865,109260.0,109250.0,2.44466619]
[1751603166019,0.21975865,109260.0,109250.0,2.44457619]
[1751603167622,0.03677275,109260.0,109250.0,2.44457619]
[1751603173028,0.014,109260.0,109250.0,2.44457619]
[1751603176833,0.01391,109260.0,109250.0,2.44457619]
[1751603177332,0.03673942,109260.0,109250.0,2.44457619]
[1751603177631,0.01391,109260.0,109250.0,2.44457619]
[1751603178236,0.01391,109260.0,109250.0,2.51758022]
[1751603183833,0.01391,109260.0,109250.0,2.26877099]
[1751603184033,0.01391,109260.0,109250.0,2.51758022]
[1751603185540,0.01391,109260.0,109250.0,2.51749822]
[1751603185740,0.26273384,109260.0,109250.0,2.51751283]
[1751603193146,0.26273384,109260.0,109250.0,2.51745613]
[1751603193547,0.01391,109260.0,109250.0,2.51745613]
[1751603193749,0.26273384,109260.0,109250.0,2.51745613]
[1751603194547,0.26265184,109260.0,109250.0,2.51745613]
[1751603195338,0.25372696,109260.0,109250.0,2.51745613]
[1751603196248,0.25372696,109260.0,109250.0,2.50380237]
[1751603201357,0.28502696,109260.0,109250.0,2.50380237]
[1751603203051,0.46801286,109260.0,109250.0,2.50380237]
[1751603203353,0.52881286,109260.0,109250.0,2.50371937]
[1751603206252,0.34582696,109260.0,109250.0,2.50371937]
[1751603211858,0.34574396,109260.0,109250.0,2.50371937]
[1751603212158,0.09692012,109260.0,109250.0,2.50371937]
[1751603212456,0.34574396,109260.0,109250.0,2.50371937]
[1751603215559,0.34574396,109260.0,109250.0,3.33307937]
[1751603221167,0.34574396,109260.0,109250.0,3.33299537]
[1751603221568,0.09692012,109260.0,109250.0,3.33299537]
[1751603221770,0.34574396,109260.0,109250.0,3.33299537]
[1751603223176,0.09692012,109260.0,109250.0,3.33299537]
[1751603223375,0.34574396,109260.0,109250.0,3.33299537]
[1751603224279,0.34574396,109260.0,109250.0,2.97219537]
[1751603224479,0.34574396,109260.0,109250.0,3.33299537]
[1751603226180,0.34574396,109260.0,109250.0,3.08417153]
[1751603226379,0.34574396,109260.0,109250.0,3.33299537]
[1751603228581,0.34565996,109260.0,109250.0,3.33299537]
[1751603228882,0.34565996,109260.0,109250.0,2.97219537]
[1751603229075,0.34565996,109260.0,109250.0,3.33299537]
[1751603232885,0.34565996,109260.0,109250.0,2.50363537]
[1751603234881,0.34565996,109260.0,109250.0,2.25481153]
[1751603235091,1.1382697,109260.0,109250.0,1.71660027]
[1751603235482,1.16104263,109260.0,109250.0,1.71660027]
[1751603235682,1.1382697,109260.0,109250.0,1.71660027]
[1751603236691,0.5944838,109260.0,109250.0,1.96542411]
[1751603236888,0.5944838,109260.0,109250.0,1.71660027]
[1751603237087,0.09683612,109260.0,109250.0,1.71660027]
[1751603237287,0.5944838,109260.0,109250.0,1.71651327]
[1751603238683,0.5944838,109260.0,109250.0,1.96533711]
[1751603239392,0.5944838,109260.0,109250.0,1.64356158]
[1751603240791,0.61724968,109260.0,109250.0,1.89238542]
[1751603241393,0.5944838,109260.0,109250.0,1.89238542]
[1751603241593,0.34565996,109260.0,109250.0,1.89238542]
[1751603242597,0.36806169,109260.0,109250.0,1.94728607]
[1751603243187,0.55104769,109260.0,109250.0,1.69846223]
[1751603243688,0.79987153,109260.0,109250.0,1.94728607]
[1751603243894,0.79987153,109260.0,109250.0,1.69846223]
[1751603244895,0.7774698,109260.0,109250.0,1.64356158]
[1751603245689,0.7773828,109260.0,109250.0,1.64356158]
[1751603245890,0.5943968,109260.0,109250.0,1.64356158]
[1751603246195,0.7773827,109260.0,109250.0,1.64356158]
[1751603246795,0.7773827,109260.0,109250.0,1.89238542]
[1751603247494,0.79978253,109260.0,109250.0,1.94728145]
[1751603247698,0.61679663,109260.0,109250.0,1.94728145]
[1751603248194,0.61679663,109260.0,109250.0,1.69845761]
[1751603248495,0.61679663,109260.0,109250.0,1.94728145]
[1751603249195,0.5943968,109260.0,109250.0,1.89238542]
[1751603250594,0.5943968,109260.0,109250.0,1.94728076]
[1751603250787,0.5943968,109260.0,109250.0,1.89238542]
[1751603251695,0.7773827,109260.0,109250.0,1.89238542]
[1751603255198,0.5943968,109260.0,109250.0,1.89238542]
[1751603257492,0.5943968,109260.0,109250.0,1.96538945]
[1751603258198,0.5943968,109260.0,109250.0,1.71656561]
[1751603258399,0.5943968,109260.0,109250.0,1.71648011]
[1751603259299,0.5943968,109260.0,109250.0,1.74838011]
[1751603262302,1.14465296,109260.0,109250.0,1.95298011]
[1751603262603,1.14465296,109260.0,109250.0,2.20180395]
[1751603262804,1.14465296,109260.0,109250.0,1.95298011]
[1751603263105,1.11405296,109260.0,109250.0,2.56260395]
[1751603264301,1.11405296,109260.0,109250.0,2.31378011]
[1751603264501,1.11405296,109260.0,109250.0,2.56260395]
[1751603264902,1.11405296,109260.0,109250.0,2.56253128]
[1751603265603,1.11405296,109260.0,109250.0,2.54886287]
[1751603265799,1.11396746,109260.0,109250.0,2.54886287]
[1751603266202,1.11396746,109260.0,109250.0,2.56253123]
[1751603274607,1.11396746,109260.0,109250.0,2.56244793]
[1751603275806,0.28468746,109260.0,109250.0,2.56244793]
[1751603276001,1.11392746,109260.0,109250.0,2.56244793]
[1751603277306,1.11392746,109260.0,109250.0,2.56244395]
[1751603278506,1.11392746,109260.0,109250.0,2.31362011]
[1751603278702,1.11392746,109260.0,109250.0,2.56244395]
[1751603279508,1.11392746,109260.0,109250.0,2.20164395]
[1751603279808,1.14482746,109260.0,109250.0,2.20164395]
[1751603280005,1.3936513,109260.0,109250.0,2.20164395]
[1751603280307,1.14482746,109260.0,109250.0,2.20164395]
[1751603280907,1.14474416,109260.0,109250.0,2.20164395]